fUSD/lending_fUSD_20240530
["ID","MTS","AMOUNT","RATE_DAILY","PERIOD"]
[328227213,1717075832621,-500.0,0.00030579,7]
[328227214,1717075832630,-500.0,0.00030579,7]
[328227215,1717075832639,-500.0,0.00030579,7]
[328227216,1717075832649,-500.0,0.00030579,7]
[328227217,1717075832658,-500.0,0.00030579,7]
[328227219,1717075832668,-164.05,0.00030579,7]
[328227221,1717075832677,-500.0,0.00030579,7]
[328227223,1717075832686,-311.50263448,0.0003058,4]
[328227225,1717075832696,-233060.75256964,0.0003058,2]
[328227227,1717075832711,-1245.53009067,0.0003058,2]
[328227229,1717075832724,-2646.83673506,0.0003058,2]
[328227232,1717075832735,-6287.00639652,0.0003058,2]
[328227234,1717075832748,-26541.74878227,0.0003058,2]
[328227236,1717075832763,-53442.03772,0.0003058,2]
[328227239,1717075832774,-313.57105066,0.0003058,2]
[328227241,1717075832786,-2764.54538536,0.0003058,2]
[328227243,1717075832798,-306.66260882,0.0003058,2]
[328227245,1717075832809,-539.69020108,0.0003058,2]
[328227247,1717075832820,-15110.99999894,0.0003058,2]
[328227250,1717075832831,-1319.092,0.0003058,2]
[328227252,1717075832842,-210748.44167078,0.0003058,2]
[328227254,1717075832853,-147062.39470085,0.0003058,2]
[328227255,1717075832862,-180.26956979,0.0003058,2]
[328227256,1717075832871,-500.0,0.00030637,7]
[328227257,1717075832881,-500.0,0.00030853,7]
[328227258,1717075832890,-500.0,0.00030853,7]
[328227259,1717075832899,-500.0,0.00030853,7]
[328227260,1717075832908,-500.0,0.00030853,7]
[328227261,1717075832916,-196.42434034,0.00030853,7]
[328227262,1717075832926,-500.0,0.00030853,7]
[328227263,1717075832935,-500.0,0.00030853,7]
[328227264,1717075832943,-289.71,0.00030853,7]
[328227265,1717075832952,-500.0,0.00030853,7]
[328227266,1717075832961,-500.0,0.00030853,7]
[328227267,1717075832972,-500.0,0.00030853,7]
[328227268,1717075832981,-500.0,0.00030853,7]
[328227269,1717075832989,-500.0,0.00030853,7]
[328227270,1717075832998,-500.0,0.00030853,7]
[328227271,1717075833008,-599.98,0.00030853,7]
[328227272,1717075833017,-500.0,0.00030853,7]
[328227273,1717075833026,-500.0,0.00030853,7]
[328227274,1717075833035,-500.0,0.00030853,7]
[328227275,1717075833044,-500.0,0.00030853,7]
[328227276,1717075833053,-500.0,0.00030853,7]
[328227277,1717075833062,-500.0,0.00030853,7]
[328227278,1717075833071,-5971.1890797,0.00030853,4]
[328227279,1717075833080,-500.0,0.00030853,7]
[328227280,1717075833089,-500.0,0.00030911,7]
[328227281,1717075833099,-304.0,0.00031,8]
[328227282,1717075833108,-500.0,0.00031127,7]
[328227283,1717075833117,-500.0,0.00031127,7]
[328227284,1717075833126,-500.0,0.00031127,7]
[328227285,1717075833135,-500.0,0.00031127,7]
[328227286,1717075833144,-500.0,0.00031127,7]
[328227287,1717075833153,-500.0,0.00031127,7]
[328227288,1717075833162,-500.0,0.00031127,7]
[328227289,1717075833172,-500.0,0.00031127,7]
[328227290,1717075833181,-457.22,0.00031127,7]
[328227291,1717075833191,-500.0,0.00031127,7]
[328227292,1717075833200,-500.0,0.00031127,7]
[328227293,1717075833209,-500.0,0.00031127,7]
[328227294,1717075833219,-599.98,0.00031127,7]
[328227295,1717075833229,-500.0,0.00031127,7]
[328227296,1717075833237,-500.0,0.00031127,7]
[328227297,1717075833247,-500.0,0.00031127,7]
[328227298,1717075833256,-500.0,0.00031127,7]
[328227299,1717075833265,-500.0,0.00031127,7]
[328227300,1717075833275,-500.0,0.00031127,7]
[328227301,1717075833284,-500.0,0.00031127,7]
[328227302,1717075833293,-500.0,0.00031184,2]
[328227303,1717075833302,-500.0,0.00031184,2]
[328227304,1717075833311,-500.0,0.00031185,7]
[328227305,1717075833320,-356.71107853,0.00031296,2]
[328227306,1717075833329,-423.81,0.00031297,2]
[328227307,1717075833338,-500.0,0.00031401,7]
[328227308,1717075833347,-500.0,0.00031401,7]
[328227309,1717075833357,-500.0,0.00031401,7]
[328227310,1717075833365,-500.0,0.00031401,7]
[328227311,1717075833375,-500.0,0.00031401,7]
[328227312,1717075833384,-500.0,0.00031401,7]
[328227313,1717075833393,-500.0,0.00031401,7]
[328227314,1717075833402,-500.0,0.00031401,7]
[328227315,1717075833411,-500.0,0.00031401,7]
[328227316,1717075833420,-500.0,0.00031401,7]
[328227317,1717075833430,-500.0,0.00031401,7]
[328227318,1717075833439,-599.98,0.00031401,7]
[328227319,1717075833448,-307.67000003,0.00031401,7]
[328227320,1717075833457,-500.0,0.00031401,7]
[328227321,1717075833468,-500.0,0.00031401,7]
[328227322,1717075833477,-500.0,0.00031401,7]
[328227323,1717075833486,-500.0,0.00031401,7]
[328227324,1717075833495,-500.0,0.00031401,7]
[328227325,1717075833504,-500.0,0.00031401,7]
[328227326,1717075833513,-500.0,0.00031459,7]
[328227327,1717075833523,-1296.53199475,0.00031633,4]
[328227328,1717075833532,-500.0,0.00031675,7]
[328227329,1717075833541,-500.0,0.00031675,7]
[328227330,1717075833551,-500.0,0.00031675,7]
[328227331,1717075833561,-500.0,0.00031675,7]
[328227332,1717075833570,-500.0,0.00031675,7]
[328227333,1717075833579,-500.0,0.00031675,7]
[328227334,1717075833588,-500.0,0.00031675,7]
[328227335,1717075833597,-500.0,0.00031675,7]
[328227336,1717075833606,-500.0,0.00031675,7]
[328227337,1717075833615,-500.0,0.00031675,7]
[328227338,1717075833625,-500.0,0.00031675,7]
[328227339,1717075833634,-599.98,0.00031675,7]
[328227340,1717075833644,-500.0,0.00031675,7]
[328227341,1717075833653,-500.0,0.00031675,7]
[328227342,1717075833663,-645.23145241,0.00031675,7]
[328227343,1717075833672,-500.0,0.00031675,7]
[328227344,1717075833681,-500.0,0.00031675,7]
[328227345,1717075833691,-500.0,0.00031675,7]
[328227346,1717075833704,-226.61,0.00031718,2]
[328227347,1717075833713,-500.0,0.00031733,7]
[328227348,1717075833726,-150.97,0.00031939,2]
[328227349,1717075833735,-500.0,0.00031949,7]
[328227350,1717075833744,-500.0,0.00031949,7]
[328227351,1717075833753,-289.15115348,0.00031949,7]
[328227352,1717075833763,-500.0,0.00031949,7]
[328227353,1717075833774,-500.0,0.00031949,7]
[328227354,1717075833783,-500.0,0.00031949,7]
[328227355,1717075833792,-572.30414214,0.00031949,7]
[328227356,1717075833801,-500.0,0.00031949,7]
[328227357,1717075833810,-500.0,0.00031949,7]
[328227358,1717075833819,-500.0,0.00031949,7]
[328227359,1717075833829,-500.0,0.00031949,7]
[328227360,1717075833837,-599.98,0.00031949,7]
[328227361,1717075833847,-500.0,0.00031949,7]
[328227362,1717075833856,-500.0,0.00031949,7]
[328227363,1717075833866,-500.0,0.00031949,7]
[328227364,1717075833875,-500.0,0.00031949,7]
[328227365,1717075833884,-500.0,0.00031949,7]
[328227366,1717075833893,-500.0,0.00032007,7]
[328227367,1717075833903,-500.0,0.00032223,7]
[328227368,1717075833912,-500.0,0.00032223,7]
[328227369,1717075833921,-500.0,0.00032223,7]
[328227370,1717075833930,-500.0,0.00032223,7]
[328227371,1717075833940,-528.03443731,0.00032223,7]
[328227372,1717075833949,-500.0,0.00032223,7]
[328227373,1717075833959,-500.0,0.00032223,7]
[328227374,1717075833969,-500.0,0.00032223,7]
[328227375,1717075833977,-500.0,0.00032223,7]
[328227376,1717075833987,-599.98,0.00032223,7]
[328227377,1717075833996,-500.0,0.00032223,7]
[328227378,1717075834004,-500.0,0.00032223,7]
[328227379,1717075834014,-500.0,0.00032223,7]
[328227380,1717075834023,-500.0,0.00032223,7]
[328227381,1717075834032,-500.0,0.00032223,7]
[328227382,1717075834041,-500.0,0.00032281,7]
[328227383,1717075834050,-464.0,0.00032338,2]
[328227384,1717075834059,-500.0,0.00032497,7]
[328227385,1717075834068,-367.02484696,0.00032497,7]
[328227386,1717075834077,-152.2260603,0.00032497,7]
[328227387,1717075834086,-500.0,0.00032497,7]
[328227388,1717075834096,-500.0,0.00032497,7]
[328227389,1717075834106,-500.0,0.00032497,7]
[328227390,1717075834115,-500.0,0.00032497,7]
[328227391,1717075834124,-500.0,0.00032497,7]
[328227392,1717075834134,-599.98,0.00032497,7]
[328227393,1717075834143,-500.0,0.00032497,7]
[328227394,1717075834152,-483.7,0.00032497,7]
[328227395,1717075834161,-500.0,0.00032497,7]
[328227396,1717075834170,-500.0,0.00032497,7]
[328227397,1717075834179,-500.0,0.00032497,7]
[328227398,1717075834188,-500.0,0.00032555,7]
[328227399,1717075834198,-500.0,0.000327,2]
[328227400,1717075834207,-500.0,0.00032771,7]
[328227401,1717075834218,-500.0,0.00032771,7]
[328227402,1717075834227,-500.0,0.00032771,7]
[328227403,1717075834237,-500.0,0.00032771,7]
[328227404,1717075834246,-500.0,0.00032771,7]
[328227405,1717075834255,-500.0,0.00032771,7]
[328227406,1717075834264,-599.98,0.00032771,7]
[328227407,1717075834273,-579.1109564,0.00032771,7]
[328227408,1717075834283,-549.40364323,0.00032771,7]
[328227409,1717075834292,-500.0,0.00032771,7]
[328227410,1717075834301,-500.0,0.00032771,7]
[328227411,1717075834310,-500.0,0.00032829,7]
[328227412,1717075834319,-4906.13972076,0.00032886,3]
[328227413,1717075834328,-185.51673198,0.00032967,2]
[328227414,1717075834337,-153.65561902,0.00033,2]
[328227415,1717075834347,-500.0,0.00033045,7]
[328227416,1717075834356,-553.5528181,0.00033045,7]
[328227417,1717075834365,-500.0,0.00033045,7]
[328227418,1717075834374,-500.0,0.00033045,7]
[328227419,1717075834384,-500.0,0.00033045,7]
[328227420,1717075834393,-500.0,0.00033045,7]
[328227421,1717075834402,-599.98,0.00033045,7]
[328227422,1717075834411,-500.0,0.00033045,7]
[328227423,1717075834421,-500.0,0.00033045,7]
[328227424,1717075834430,-238.32802524,0.00033079,5]
[328227425,1717075834439,-500.0,0.00033103,7]
[328227426,1717075834448,-5800.0,0.00033149,2]
[328227427,1717075834458,-150.61262183,0.00033155,7]
[328227428,1717075834467,-5800.0,0.00033157,2]
[328227429,1717075834476,-5800.0,0.00033166,2]
[328227430,1717075834486,-5800.0,0.00033175,2]
[328227431,1717075834495,-5800.0,0.00033183,2]
[328227432,1717075834504,-5800.0,0.00033192,2]
[328227433,1717075834513,-686.94312496,0.00033197,5]
[328227434,1717075834522,-686.94312488,0.00033197,5]
[328227435,1717075834531,-686.94312488,0.00033198,5]
[328227436,1717075834540,-686.94312488,0.00033198,5]
[328227437,1717075834549,-686.94312488,0.00033198,5]
[328227438,1717075834558,-686.94312488,0.00033198,5]
[328227439,1717075834567,-686.94312488,0.00033199,5]
[328227440,1717075834577,-48862.5389,0.00033199,2]
[328227441,1717075834586,-686.94312488,0.00033199,5]
[328227442,1717075834594,-686.94312488,0.00033199,5]
[328227443,1717075834603,-686.94312488,0.00033199,5]
[328227444,1717075834612,-686.94312488,0.000332,5]
[328227445,1717075834621,-5800.0,0.000332,2]
[328227446,1717075834630,-686.94312488,0.000332,5]
[328227447,1717075834639,-218.94668508,0.000332,2]
[328227448,1717075834648,-422.45228144,0.000332,2]
[328227449,1717075834657,-162.43403891,0.000332,2]
[328227450,1717075834666,-543.0,0.00033208,2]
[328227451,1717075834675,-150.97,0.0003329,2]
[328227452,1717075834685,-150.97,0.0003329,2]
[328227453,1717075834695,-150.97,0.0003329,2]
[328227454,1717075834707,-153.0,0.00033295,5]
[328227455,1717075834716,-155.36720455,0.00033295,2]
[328227456,1717075834727,-4050.7503901,0.00033296,2]
[328227457,1717075834736,-5914.6711243,0.00033296,2]
[328227458,1717075834746,-83188.6027133,0.00033296,2]
[328227459,1717075834755,-885.9338155,0.00033296,2]
[328227460,1717075834764,-4525.8565917,0.00033296,2]
[328227461,1717075834772,-9798.9802401,0.00033296,2]
[328227462,1717075834784,-8314.72305227,0.00033298,4]
[328227463,1717075834793,-268.18956153,0.00033298,4]
[328227464,1717075834802,-848.89413655,0.00033298,2]
[328227465,1717075834811,-165.73746792,0.00033298,4]
[328227466,1717075834821,-209.57996259,0.00033298,4]
[328227467,1717075834830,-155.92673845,0.00033298,4]
[328227468,1717075834839,-170.07547884,0.00033298,4]
[328227469,1717075834849,-2815.28122404,0.00033298,4]
[328227470,1717075834858,-155.36366104,0.00033298,4]
[328227471,1717075834867,-239.87024777,0.00033298,4]
[328227472,1717075834877,-3772.45714157,0.00033298,4]
[328227473,1717075834886,-1898.32825842,0.00033298,4]
[328227474,1717075834895,-29424.33539286,0.00033298,2]
[328227475,1717075834904,-196.75989189,0.00033298,4]
[328227476,1717075834913,-12660.485417,0.00033298,5]
[328227477,1717075834922,-155.0,0.00033298,4]
[328227478,1717075834931,-1465.62018346,0.00033298,4]
[328227479,1717075834940,-15003.84293463,0.00033298,4]
[328227480,1717075834949,-321.83343734,0.00033298,4]
[328227481,1717075834958,-415.03096427,0.00033298,4]
[328227482,1717075834968,-364.27737293,0.00033298,4]
[328227483,1717075834977,-723.13012267,0.00033298,4]
[328227484,1717075834987,-223.69513029,0.00033298,4]
[328227485,1717075834996,-2000.83899828,0.00033298,4]
[328227486,1717075835005,-2537.17006111,0.00033298,4]
[328227487,1717075835014,-365.41188628,0.00033298,4]
[328227488,1717075835023,-360.33029721,0.00033298,4]
[328227489,1717075835032,-1386.55437292,0.00033298,4]
[328227490,1717075835041,-155.0,0.00033298,4]
[328227491,1717075835050,-271.65498901,0.00033298,4]
[328227492,1717075835060,-266.30735074,0.00033298,4]
[328227493,1717075835069,-1497.14333897,0.00033299,4]
[328227494,1717075835078,-34095.2235681,0.00033299,4]
[328227495,1717075835087,-443.2588955,0.00033299,2]
[328227496,1717075835097,-500.0,0.00033299,7]
[328227497,1717075835106,-448.8793,0.00033299,2]
[328227498,1717075835116,-250.0,0.00033299,7]
[328227499,1717075835125,-1120.95,0.00033299,7]
[328227500,1717075835134,-599.16939736,0.000333,5]
[328227501,1717075835144,-1167426.57585424,0.000333,5]
[328227502,1717075835158,-93349.48844565,0.000333,5]
[328227517,1717075838243,-845.02,0.000333,5]
[328227518,1717075838356,-15550.4733312,0.000333,5]
[328227519,1717075838368,-378.88143139,0.000333,5]
[328227520,1717075838467,-3016.78104287,0.000333,5]
[328227521,1717075838481,-24888.08553749,0.000333,5]
[328227522,1717075838578,-3360.28349679,0.000333,5]
[328227683,1717075841096,-404.78636156,0.000333,5]
[328227684,1717075841213,-1824.27,0.000333,5]
[328227692,1717075843323,-5378.256931,0.000333,5]
[328227712,1717075843443,-690752.00000116,0.000333,5]
[328227715,1717075843456,-459.39558771,0.000333,5]
[328227717,1717075843467,-7513.39127807,0.000333,5]
[328227719,1717075843479,-8024.00744372,0.000333,5]
[328227721,1717075843490,-1005.25767824,0.000333,5]
[328227723,1717075843501,-276.03969957,0.000333,5]
[328227726,1717075843512,-1201.41701988,0.000333,5]
[328227728,1717075843523,-9888.55651167,0.000333,5]
[328227729,1717075844164,-4633.03836112,0.000333,5]
[328227730,1717075844176,-268.77602007,0.000333,5]
[328227731,1717075844188,-508.28687562,0.000333,5]
[328227732,1717075844200,-589.57945547,0.000333,5]
[328227733,1717075844213,-9136.70863232,0.000333,5]
[328227734,1717075844224,-1663.12439327,0.000333,5]
[328227735,1717075844237,-382005.0908159,0.000333,5]
[328227789,1717075845091,-3512.54571817,0.000333,5]
[328227895,1717075846230,-579.38487268,0.00030579,7]
[328227898,1717075846240,-445.26306121,0.00033299,4]
[328227901,1717075846250,-159.0,0.000333,5]
[328227904,1717075846259,-2513.07052477,0.000333,5]
[328227923,1717075846351,-1606.92194789,0.000333,5]
[328227959,1717075846899,-7085.1,0.00033299,4]
[328227960,1717075846910,-3946.5,0.00033299,4]
[328227961,1717075846922,-7228.54315627,0.00033299,4]
[328227962,1717075846931,-37.15684373,0.000333,5]
[328227963,1717075846942,-265.15710906,0.000333,5]
[328227964,1717075846952,-652.5533043,0.000333,5]
[328227965,1717075846963,-14308.71936977,0.000333,5]
[328227966,1717075846974,-19040.51189737,0.000333,5]
[328227967,1717075846986,-9763.71130001,0.000333,5]
[328227968,1717075846998,-877.253116,0.000333,5]
[328227969,1717075847009,-71635.89369598,0.000333,5]
[328227970,1717075847020,-429.75631163,0.000333,5]
[328227971,1717075847032,-402.55786998,0.000333,5]
[328227972,1717075947068,-19042.20401248,0.00033197,61]
[328227974,1717076045899,2461.29111359,0.000118,2]
[328227976,1717076108764,24641.78950231,0.000118,2]
[328227977,1717076124748,24641.78950231,0.000118,2]
[328227978,1717076134237,892.1868,0.00030347,120]
[328227980,1717076142750,10819.03505067,0.000118,2]
[328227984,1717076198450,5352473.11466989,0.00013,2]
[328227986,1717076403387,150.55227577,0.00013,2]
[328227987,1717076413359,956.78567492,0.0001235,2]
[328227988,1717076433296,504.12078215,0.0001235,2]
[328227989,1717076439002,163367.39713303,0.00013,2]
[328227991,1717076499796,155.91,0.00013973,2]
[328228035,1717076987821,50000.0,0.00034045,10]
[328228036,1717076996522,50000.0,0.00034045,10]
[328228047,1717077032453,-150.0,0.00019725,2]
[328228048,1717077032462,-150.0,0.00019725,2]
[328228049,1717077032472,-155.1,0.00024842,2]
[328228050,1717077032483,-233.71,0.00029177,2]
[328228051,1717077032492,-1645.0,0.00030447,2]
[328228052,1717077032501,-440.0,0.00030447,2]
[328228053,1717077032510,-614.0,0.00030447,2]
[328228054,1717077032519,-2398.0,0.00030447,2]
[328228055,1717077032528,-11141.5093,0.0003048,2]
[328228056,1717077032537,-160.54462895,0.00030579,7]
[328228057,1717077032546,-500.0,0.00030579,7]
[328228058,1717077032556,-500.0,0.00030579,7]
[328228059,1717077032565,-500.0,0.00030579,7]
[328228060,1717077032574,-500.0,0.00030579,7]
[328228061,1717077032584,-404.49601151,0.00030579,7]
[328228062,1717077032593,-500.0,0.00030579,7]
[328228063,1717077032602,-500.0,0.00030579,7]
[328228064,1717077032612,-500.0,0.00030579,7]
[328228065,1717077032622,-500.0,0.00030579,7]
[328228066,1717077032631,-500.0,0.00030579,7]
[328228067,1717077032640,-538.6,0.00030579,7]
[328228068,1717077032649,-500.0,0.00030579,7]
[328228069,1717077032659,-601.4,0.00030579,7]
[328228070,1717077032669,-500.0,0.00030579,7]
[328228071,1717077032678,-500.0,0.00030579,7]
[328228072,1717077032687,-500.0,0.00030579,7]
[328228073,1717077032696,-500.0,0.00030579,7]
[328228074,1717077032706,-500.0,0.00030579,7]
[328228075,1717077032727,-500.0,0.00030579,7]
[328228076,1717077032737,-500.0,0.00030579,7]
[328228077,1717077032747,-500.0,0.00030579,7]
[328228078,1717077032756,-500.0,0.00030579,7]
[328228079,1717077032765,-500.0,0.00030579,7]
[328228080,1717077032775,-500.0,0.00030579,7]
[328228081,1717077032784,-500.0,0.00030579,7]
[328228082,1717077032794,-335.0548343,0.00030579,7]
[328228083,1717077032803,-485.13492962,0.00030579,7]
[328228084,1717077032812,-500.0,0.00030579,7]
[328228085,1717077032821,-500.0,0.00030579,7]
[328228086,1717077032831,-502.41,0.00030579,7]
[328228087,1717077032840,-500.0,0.00030579,7]
[328228089,1717077032849,-500.0,0.00030579,7]
[328228091,1717077032859,-500.0,0.00030579,7]
[328228092,1717077032868,-300.78806884,0.00030579,7]
[328228093,1717077032877,-500.0,0.00030579,7]
[328228094,1717077032886,-500.0,0.00030579,7]
[328228095,1717077032896,-500.0,0.00030579,7]
[328228096,1717077032905,-500.0,0.00030579,7]
[328228097,1717077032915,-500.0,0.00030579,7]
[328228098,1717077032924,-500.0,0.00030579,7]
[328228099,1717077032933,-500.0,0.00030579,7]
[328228100,1717077032942,-500.0,0.00030579,7]
[328228101,1717077032952,-223.30802607,0.00030579,7]
[328228102,1717077032961,-500.0,0.00030579,7]
[328228103,1717077032971,-500.0,0.00030579,7]
[328228104,1717077032982,-500.0,0.00030579,7]
[328228105,1717077032991,-500.0,0.00030579,7]
[328228106,1717077033000,-500.0,0.00030579,7]
[328228107,1717077033010,-500.0,0.00030579,7]
[328228108,1717077033019,-500.0,0.00030579,7]
[328228109,1717077033028,-500.0,0.00030579,7]
[328228110,1717077033038,-500.0,0.00030579,7]
[328228111,1717077033047,-500.0,0.00030579,7]
[328228112,1717077033057,-500.0,0.00030579,7]
[328228113,1717077033071,-250.0,0.00030579,7]
[328228114,1717077033081,-500.0,0.00030579,7]
[328228115,1717077033090,-500.0,0.00030579,7]
[328228116,1717077033099,-500.0,0.00030579,7]
[328228117,1717077033110,-500.0,0.00030579,7]
[328228118,1717077033120,-500.0,0.00030579,7]
[328228119,1717077033130,-500.0,0.00030579,7]
[328228120,1717077033139,-500.0,0.00030579,7]
[328228121,1717077033149,-500.0,0.00030579,7]
[328228122,1717077033159,-500.0,0.00030579,7]
[328228123,1717077033168,-500.0,0.00030579,7]
[328228124,1717077033178,-500.0,0.00030579,7]
[328228125,1717077033187,-517.47099809,0.00030579,7]
[328228126,1717077033195,-1074.25,0.00030579,7]
[328228127,1717077033205,-500.0,0.00030579,7]
[328228128,1717077033214,-500.0,0.00030579,7]
[328228129,1717077033223,-386.92069865,0.00030579,7]
[328228130,1717077033240,-500.0,0.00030579,7]
[328228131,1717077033249,-500.0,0.00030579,7]
[328228132,1717077033259,-618.48894211,0.00030579,7]
[328228133,1717077033268,-500.0,0.00030579,7]
[328228134,1717077033277,-500.0,0.00030579,7]
[328228135,1717077033287,-500.0,0.00030579,7]
[328228136,1717077033297,-500.0,0.00030579,7]
[328228137,1717077033307,-500.0,0.00030579,7]
[328228138,1717077033316,-500.0,0.00030579,7]
[328228139,1717077033325,-500.0,0.00030579,7]
[328228140,1717077033334,-500.0,0.00030853,7]
[328228141,1717077033344,-363.14,0.00030853,7]
[328228142,1717077033353,-390.04,0.00030853,7]
[328228143,1717077033362,-150.89,0.00030853,7]
[328228144,1717077033371,-291.9,0.00030853,7]
[328228145,1717077033380,-500.0,0.00030853,7]
[328228146,1717077033390,-500.0,0.00030853,7]
[328228147,1717077033400,-250.0,0.00030853,7]
[328228148,1717077033409,-500.0,0.00030853,7]
[328228149,1717077033418,-500.0,0.00030853,7]
[328228150,1717077033428,-500.0,0.00030853,7]
[328228151,1717077033437,-348.41,0.00030853,7]
[328228152,1717077033447,-500.0,0.00030853,7]
[328228153,1717077033456,-1074.25,0.00030853,7]
[328228154,1717077033465,-500.0,0.00030853,7]
[328228155,1717077033475,-500.0,0.00030853,7]
[328228156,1717077033488,-500.0,0.00030853,7]
[328228157,1717077033497,-310.1,0.0003104,2]
[328228158,1717077033507,-317.6,0.00031127,7]
[328228159,1717077033515,-500.0,0.00031127,7]
[328228160,1717077033527,-250.0,0.00031127,7]
[328228161,1717077033536,-1074.25,0.00031127,7]
[328228162,1717077033545,-500.0,0.00031127,7]
[328228163,1717077033555,-310.4,0.00031335,2]
[328228164,1717077033564,-500.0,0.00031401,7]
[328228165,1717077033757,-169.05956039,0.00031401,7]
[328228166,1717077033767,-1074.25,0.00031401,7]
[328228167,1717077033777,-500.0,0.00031401,7]
[328228168,1717077033786,-250.0,0.00031414,2]
[328228169,1717077033795,-233.71,0.00031441,2]
[328228170,1717077033805,-250.0,0.00031457,2]
[328228171,1717077033814,-500.0,0.00031675,7]
[328228172,1717077033824,-1074.25,0.00031675,7]
[328228173,1717077033833,-500.0,0.00031675,7]
[328228174,1717077033844,-500.0,0.00031949,7]
[328228175,1717077033853,-1074.25,0.00031949,7]
[328228176,1717077033863,-196.48248996,0.00031949,7]
[328228177,1717077033877,-280.63437569,0.00031949,7]
[328228178,1717077033886,-500.0,0.00032223,7]
[328228179,1717077033896,-1074.25,0.00032223,7]
[328228180,1717077033905,-500.0,0.00032497,7]
[328228181,1717077033916,-52.88562427,0.00032497,7]
[328228182,1717077033927,-1021.36437573,0.00032497,7]
[328228183,1717077033937,-155.0,0.00032632,4]
[328228184,1717077033947,-500.0,0.000327,2]
[328228185,1717077033957,-233.66691713,0.00032771,7]
[328228186,1717077033968,-266.33308287,0.00032771,7]
[328228187,1717077033977,-1074.25,0.00032771,7]
[328228188,1717077033987,-4046.93862411,0.0003286,30]
[328228189,1717077033996,-200.0,0.000329,2]
[328228190,1717077034005,-1199.11421599,0.000329,2]
[328228191,1717077034015,-4201.0,0.000329,2]
[328228192,1717077034024,-500.0,0.00033045,7]
[328228193,1717077034033,-1074.25,0.00033045,7]
[328228194,1717077034043,-491.86999494,0.00033195,10]
[328228195,1717077034052,-394.32513042,0.00033195,10]
[328228196,1717077034063,-1000.0,0.00033195,2]
[328228197,1717077034074,-491.86999487,0.00033196,10]
[328228198,1717077034083,-394.32513033,0.00033196,10]
[328228199,1717077034092,-491.86999487,0.00033196,10]
[328228200,1717077034103,-394.32513033,0.00033196,10]
[328228201,1717077034112,-491.86999487,0.00033197,10]
[328228202,1717077034121,-394.32513033,0.00033197,10]
[328228203,1717077034130,-491.86999487,0.00033197,10]
[328228204,1717077034140,-394.32513033,0.00033197,10]
[328228205,1717077034149,-491.86999487,0.00033198,10]
[328228206,1717077034159,-491.86999487,0.00033198,10]
[328228207,1717077034168,-491.86999487,0.00033199,10]
[328228208,1717077034178,-491.86999487,0.00033199,10]
[328228209,1717077034187,-2335.05107251,0.000332,5]
[328228210,1717077034196,-491.86999487,0.000332,10]
[328228211,1717077034206,-638.2327396,0.000332,2]
[328228212,1717077034215,-5472.25409192,0.000332,2]
[328228213,1717077034224,-199.96781807,0.000332,2]
[328228214,1717077034244,-281.6348543,0.000332,2]
[328228215,1717077034253,-237.13518572,0.000332,2]
[328228216,1717077034263,-166.88,0.00033285,3]
[328228217,1717077034272,-500.66,0.00033285,3]
[328228218,1717077034281,-500.0,0.00033294,7]
[328228219,1717077034290,-500.0,0.00033294,7]
[328228220,1717077034299,-500.0,0.00033294,7]
[328228221,1717077034308,-596.1,0.00033294,7]